bitfinex-derivatives/quotes_BTCF0:USTF0_20241210
["timestamp","ask_amount","ask_price","bid_price","bid_amount"]
[1733806308492,0.3608,96731.0,96719.0,0.24639191]
[1733806308693,0.3608,96731.0,96718.0,0.24639191]
[1733806308694,0.3608,96721.0,96718.0,0.24639191]
[1733806308897,4e-05,96720.0,96717.0,0.24639191]
[1733806309197,4e-05,96720.0,96712.0,0.00923484]
[1733806309198,4e-05,96718.0,96716.0,0.24639191]
[1733806309398,4e-05,96718.0,96712.0,0.00923484]
[1733806309399,4e-05,96718.0,96715.0,0.59379191]
[1733806309598,4e-05,96717.0,96715.0,0.59379191]
[1733806309789,4e-05,96717.0,96716.0,0.24639191]
[1733806310102,4e-05,96717.0,96715.0,0.759874]
[1733806310297,4e-05,96717.0,96715.0,1.12963923]
[1733806310493,4e-05,96716.0,96715.0,0.759874]
[1733806310896,4e-05,96716.0,96715.0,0.7939129]
[1733806311098,4e-05,96716.0,96715.0,0.759874]
[1733806311699,4e-05,96716.0,96715.0,0.399074]
[1733806312299,4e-05,96716.0,96715.0,0.70691744]
[1733806312498,4e-05,96716.0,96715.0,0.399074]
[1733806313301,0.00104,96716.0,96715.0,0.399074]
[1733806313506,0.051677,96710.0,96708.0,0.24631792]
[1733806313801,0.051681,96702.0,96690.0,0.00942841]
[1733806314001,0.3608,96697.0,96690.0,0.00942841]
[1733806314197,4e-05,96691.0,96690.0,0.00942841]
[1733806314594,4e-05,96691.0,96687.0,0.34732]
[1733806314807,0.3608,96688.0,96687.0,0.34732]
[1733806315002,0.36084,96688.0,96687.0,0.34741354]
[1733806315311,0.412529,96688.0,96687.0,9.354e-05]
[1733806316404,0.42176944,96688.0,96687.0,0.00109354]
[1733806316901,0.42176944,96688.0,96687.0,0.00409354]
[1733806317101,0.42176944,96688.0,96687.0,5.4e-07]
[1733806318203,0.42176944,96688.0,96687.0,0.0001319]
[1733806318600,0.37008044,96688.0,96687.0,0.0001319]
[1733806321203,0.36084,96688.0,96687.0,0.0001319]
[1733806322109,0.36084,96688.0,96687.0,0.00113136]
[1733806322299,0.36084,96688.0,96687.0,0.00413136]
[1733806322905,0.36584,96688.0,96687.0,0.00013136]
[1733806323506,0.36284,96688.0,96687.0,0.00013136]
[1733806323815,0.36684,96688.0,96687.0,0.00013136]
[1733806324906,0.36484,96688.0,96687.0,0.00013136]
[1733806325108,0.36784,96688.0,96687.0,0.00013136]
[1733806325809,0.36384,96688.0,96687.0,0.00013136]
[1733806326017,0.00504,96688.0,96687.0,0.00013136]
[1733806326521,0.00204,96688.0,96687.0,0.00013136]
[1733806326911,0.0909,96711.0,96687.0,0.36093136]
[1733806327106,0.3608,96718.0,96701.0,0.051682]
[1733806327303,0.11179218,96711.0,96710.0,8e-05]
[1733806327611,0.412473,96718.0,96710.0,8e-05]
[1733806328004,0.412473,96718.0,96717.0,8e-05]
[1733806328213,0.42210054,96718.0,96717.0,8e-05]
[1733806328515,0.37042754,96718.0,96717.0,8e-05]
[1733806329118,0.3608,96718.0,96717.0,8e-05]
[1733806329307,0.3608,96733.0,96717.0,0.37071795]
[1733806329506,0.008,96718.0,96717.0,0.42339095]
[1733806329711,0.008,96718.0,96717.0,0.41365642]
[1733806330110,0.003,96718.0,96717.0,0.41265642]
[1733806330314,0.005,96718.0,96717.0,0.41265642]
[1733806331213,0.005,96718.0,96717.0,0.41588553]
[1733806331813,0.004,96718.0,96717.0,0.41588553]
[1733806332023,0.004,96718.0,96717.0,0.42540034]
[1733806332715,0.004,96718.0,96717.0,0.01292734]
[1733806332918,0.004,96718.0,96717.0,0.00341253]
[1733806333121,0.004,96718.0,96717.0,0.00018342]
[1733806337120,0.004,96718.0,96717.0,0.0034131]
[1733806338523,0.004,96718.0,96717.0,0.00341271]
[1733806339725,0.3608,96735.0,96733.0,0.051665]
[1733806339924,0.3608,96735.0,96733.0,0.05489429]
[1733806341126,0.3608,96735.0,96733.0,0.00322929]
[1733806341724,0.3608,96735.0,96733.0,0.00322911]
[1733806342231,0.00513098,96734.0,96733.0,0.00322911]
[1733806342924,0.00013098,96734.0,96733.0,0.00722911]
[1733806343120,0.00213098,96734.0,96733.0,0.00722911]
[1733806343419,0.00213098,96734.0,96733.0,0.00322911]
[1733806343824,0.00413098,96734.0,96733.0,0.00322911]
[1733806345925,0.00213098,96734.0,96733.0,0.00322911]
[1733806346115,0.00413098,96734.0,96733.0,0.00322911]
[1733806346623,0.00313098,96734.0,96733.0,0.00322911]
[1733806347023,0.00113098,96734.0,96733.0,0.00322911]
[1733806347226,0.09663098,96734.0,96733.0,0.00322911]
[1733806347729,0.09663098,96734.0,96733.0,0.05489411]
[1733806347730,0.00213098,96734.0,96733.0,0.05489411]
[1733806348920,0.00213098,96734.0,96733.0,0.00322911]
[1733806349122,0.00113098,96734.0,96733.0,0.00322911]
[1733806349326,0.00213098,96734.0,96733.0,0.00322911]
[1733806349621,0.00113098,96734.0,96733.0,0.00322911]
[1733806352528,0.00113098,96734.0,96733.0,0.05489411]
[1733806354030,0.00113098,96734.0,96733.0,0.05589411]
[1733806354333,0.36193098,96734.0,96733.0,0.00422904]
[1733806354533,0.051673,96718.0,96708.0,0.30749143]
[1733806354723,0.412473,96718.0,96700.0,0.30749143]
[1733806354926,0.412513,96718.0,96700.0,0.30749143]
[1733806355128,0.412513,96718.0,96701.0,0.30749143]
[1733806355329,0.412513,96718.0,96701.0,0.35917343]
[1733806355531,0.412513,96718.0,96702.0,0.051681]
[1733806355928,0.417513,96718.0,96702.0,0.051681]
[1733806356128,0.51016681,96718.0,96702.0,0.051681]
[1733806356328,0.417513,96718.0,96702.0,0.051681]
[1733806356631,0.46758197,96718.0,96717.0,0.00118342]
[1733806356842,0.37484,96718.0,96717.0,0.00118342]
[1733806357727,0.38437653,96718.0,96717.0,0.00118342]
[1733806358535,0.37937653,96718.0,96717.0,0.00118342]
[1733806358729,0.38137653,96718.0,96717.0,0.00118342]
[1733806359429,0.37437653,96718.0,96717.0,0.00018342]
[1733806359632,0.37637653,96718.0,96717.0,0.00018342]
[1733806360033,0.37537653,96718.0,96717.0,0.00018342]
[1733806360738,0.37637653,96718.0,96717.0,0.00018342]
[1733806361231,0.37237653,96718.0,96717.0,0.00018342]
[1733806361428,0.37637653,96718.0,96717.0,0.00018342]
[1733806362833,0.37437653,96718.0,96717.0,0.00018342]
[1733806363139,0.37237653,96718.0,96717.0,0.00018342]
[1733806363526,0.37137653,96718.0,96717.0,0.00018342]
[1733806363727,0.37237653,96718.0,96717.0,0.00018342]
[1733806364344,0.37237653,96718.0,96717.0,0.00184728]
[1733806365533,0.37337653,96718.0,96717.0,0.00184728]
[1733806365926,0.37237653,96718.0,96717.0,0.00184728]
[1733806366127,0.37137653,96718.0,96717.0,0.00184728]
[1733806366328,0.37337653,96718.0,96717.0,0.00184728]
[1733806366525,0.37237653,96718.0,96717.0,0.00184728]
[1733806366734,0.37437653,96718.0,96717.0,0.00184728]
[1733806367336,0.37737653,96718.0,96703.0,0.34728]
[1733806367539,0.41248,96704.0,96703.0,0.34728]
[1733806367741,0.41252,96704.0,96703.0,0.34728]
[1733806368349,0.41252,96704.0,96703.0,0.35062206]
[1733806368844,0.41452,96704.0,96703.0,0.35062206]
[1733806369241,0.41452,96704.0,96703.0,0.34739158]
[1733806370336,0.41752,96704.0,96703.0,0.34739158]
[1733806370637,0.41752,96704.0,96703.0,0.35062204]
[1733806371934,0.00504,96704.0,96703.0,0.35062204]
[1733806372243,0.00504,96704.0,96703.0,0.80232204]
[1733806372553,0.20453415,96730.0,96703.0,0.80232204]
[1733806372554,0.0926036,96736.0,96722.0,0.3608]
[1733806372750,0.051581,96890.0,96859.0,0.051597]
[1733806372937,0.00052001,96920.0,96912.0,0.01]
[1733806373143,0.4941537,97004.0,96919.0,0.7216]
[1733806373144,0.00948482,96935.0,96919.0,0.7216]
[1733806373449,0.051535,96976.0,96934.0,0.72164]
[1733806373749,0.051535,96976.0,96919.0,4e-05]
[1733806373750,0.94793101,96976.0,96975.0,4e-05]
[1733806373945,0.79386175,96976.0,96975.0,1.03693605]
[1733806374139,0.79386175,96976.0,96975.0,2.15025801]
[1733806374140,1.20860683,96976.0,96975.0,2.15025801]
[1733806374351,0.59448881,96976.0,96975.0,2.15025801]
[1733806374549,0.009,96976.0,96975.0,2.58540968]
[1733806374736,0.009,96976.0,96975.0,3.1176122]
[1733806374940,0.4608,97000.0,96975.0,3.89541639]
[1733806374941,0.46003552,96990.0,96975.0,3.89541639]
[1733806375242,0.39292226,97000.0,96985.0,0.3608]
[1733806375243,0.77023294,96992.0,96985.0,0.3608]
[1733806375441,0.2573269,96995.0,96986.0,1.50528807]
[1733806375639,0.62282467,96988.0,96987.0,2.85926813]
[1733806375838,0.35692564,96991.0,96987.0,4.95897045]
[1733806376046,0.17574413,96988.0,96987.0,0.04518759]
[1733806376250,0.17574413,96988.0,96987.0,3.03419977]
[1733806376450,0.77023294,96988.0,96987.0,7.56905623]
[1733806376646,0.72513635,96988.0,96987.0,7.56905623]
[1733806377053,0.73413635,96988.0,96987.0,7.57005623]
[1733806377557,0.13964754,96988.0,96987.0,5.92892894]
[1733806378052,0.009,96988.0,96987.0,7.56988124]
[1733806378350,0.009,96988.0,96987.0,5.92892894]
[1733806378547,0.051527,96993.0,96987.0,5.85484105]
[1733806378850,0.13064754,96992.0,96988.0,5.25229058]
[1733806379058,0.59459966,97000.0,96991.0,0.3608]
[1733806379251,0.59459966,97000.0,96998.0,0.76845886]
[1733806379454,0.59459966,97000.0,96999.0,3.91195748]
[1733806379644,0.59459966,97000.0,96999.0,2.59106703]
[1733806379840,0.30011085,97000.0,96997.0,0.01539285]
[1733806380042,0.30007085,97000.0,96989.0,0.47314827]
[1733806380243,0.05512401,96998.0,96997.0,0.15016494]
[1733806380442,0.05512401,96998.0,96992.0,0.47314827]
[1733806380443,0.04912401,96998.0,96992.0,0.47314827]
[1733806380649,0.2573269,96999.0,96991.0,0.3608]
[1733806380843,8e-05,96993.0,96991.0,0.3608]
[1733806381048,0.2573269,97001.0,96998.0,4e-05]
[1733806381245,0.2573269,97001.0,97000.0,0.3608]
[1733806381446,0.051517,97011.0,97000.0,0.3608]
[1733806381651,0.051517,97011.0,97010.0,0.3608]
[1733806381846,0.051517,97011.0,97010.0,0.36084]
[1733806382152,0.2573269,97020.0,97010.0,0.36084]
[1733806382359,0.18094995,97034.0,97010.0,0.36084]
[1733806382360,0.2573269,97030.0,97018.0,0.3608]
[1733806382656,0.3088339,97030.0,97029.0,4e-05]
[1733806382859,0.3,97030.0,97010.0,0.3608]
[1733806383154,8e-05,97011.0,96998.0,0.3608]
[1733806383357,0.051523,97000.0,96998.0,0.3608]
[1733806383656,8.927e-05,97024.0,96998.0,0.3608]
[1733806383657,8e-05,96999.0,96998.0,0.3608]
[1733806384152,0.2573269,97030.0,96998.0,0.3608]
[1733806384153,0.47511036,97030.0,96998.0,0.3608]
[1733806384346,0.051513,97018.0,97017.0,0.3608]
[1733806386045,0.2573269,97030.0,97017.0,0.3608]
[1733806386251,0.5573269,97030.0,97017.0,0.3608]
[1733806386860,0.051513,97018.0,97017.0,0.3608]
[1733806388265,0.051513,97018.0,96987.0,8.982e-05]
[1733806388266,0.051529,96988.0,96987.0,8.982e-05]
[1733806388454,0.051529,96988.0,96987.0,0.00515615]
[1733806389159,8e-05,96988.0,96987.0,0.00515615]
[1733806389466,0.051609,96988.0,96987.0,0.00515615]
[1733806389757,0.051609,96988.0,96987.0,3.3e-07]
[1733806390156,0.351609,96988.0,96987.0,3.3e-07]
[1733806390355,0.25996837,96988.0,96987.0,3.3e-07]
[1733806390762,0.25996837,96988.0,96987.0,8.324e-05]
[1733806390961,0.31924804,96988.0,96987.0,2.4e-07]
[1733806391352,0.051544,96960.0,96945.0,0.02577648]
[1733806391659,0.3608,96972.0,96953.0,0.051548]
[1733806391857,0.051538,96971.0,96954.0,0.00515708]
[1733806392166,0.412338,96972.0,96971.0,4e-05]
[1733806392367,0.412338,96972.0,96971.0,0.00014819]
[1733806392550,0.412338,96972.0,96971.0,0.00010819]
[1733806392957,0.52674694,96972.0,96971.0,0.00010819]
[1733806393156,0.051546,96956.0,96954.0,0.00515708]
[1733806393354,0.051546,96956.0,96955.0,0.01611131]
[1733806394063,0.56382432,96990.0,96982.0,0.0001332]
[1733806394268,0.051543,96962.0,96961.0,0.3608]
[1733806394467,0.051543,96962.0,96961.0,0.40268755]
[1733806394667,0.051623,96962.0,96961.0,0.40268755]
[1733806395178,0.051623,96962.0,96961.0,0.40268757]
[1733806395384,0.051623,96962.0,96961.0,0.40280175]
[1733806397069,0.051623,96962.0,96961.0,0.36091418]
[1733806397381,0.051623,96962.0,96961.0,0.40280041]
[1733806397675,0.051623,96962.0,96961.0,0.44283204]
[1733806397676,8e-05,96962.0,96961.0,0.44283204]
[1733806398176,0.37628,97002.0,96961.0,0.44283204]
[1733806398370,0.37628,97002.0,96988.0,0.3608]
[1733806398371,0.1670408,97000.0,96988.0,0.3608]
[1733806398578,0.02308883,96999.0,96989.0,0.04188623]
[1733806398877,0.02308883,96999.0,96961.0,0.36091418]
[1733806398878,0.412328,96991.0,96981.0,5e-07]
[1733806399079,0.051543,96962.0,96961.0,0.40094581]
[1733806399582,0.051543,96962.0,96961.0,0.00011418]
[1733806401380,0.04183678,96962.0,96961.0,0.00011418]
[1733806402084,0.04183678,96962.0,96961.0,0.91747247]
[1733806402273,0.00775131,96963.0,96961.0,0.96256772]
[1733806402474,0.051542,96963.0,96962.0,0.96245354]
[1733806402670,0.051542,96963.0,96962.0,0.96249354]
[1733806403069,0.00204682,96971.0,96962.0,0.96249354]
[1733806403273,0.3608,96970.0,96963.0,0.42660854]
[1733806403473,0.3608,96970.0,96962.0,4e-05]
[1733806403474,0.051542,96964.0,96962.0,0.00052]
[1733806403676,0.05155,96948.0,96947.0,0.833957]
[1733806403877,0.05155,96948.0,96947.0,0.92221511]
[1733806404076,0.1998625,96970.0,96947.0,0.92221511]
[1733806404281,0.051543,96962.0,96961.0,0.30455257]
[1733806404479,0.051543,96962.0,96959.0,0.3608]
[1733806404684,0.051543,96962.0,96961.0,0.36546371]
[1733806404881,0.051543,96962.0,96961.0,0.36534803]
[1733806405182,0.051543,96962.0,96960.0,0.00012063]
[1733806406279,0.051537,96974.0,96960.0,0.04015226]
[1733806406474,0.051537,96974.0,96973.0,0.3608]
[1733806406676,0.051537,96974.0,96973.0,0.36084]
[1733806406884,0.051537,96974.0,96973.0,0.72598497]
[1733806407087,0.051537,96974.0,96973.0,0.36084]
[1733806409081,0.051531,96985.0,96973.0,0.40087163]
[1733806409285,0.3608,97010.0,96984.0,0.3608]
[1733806409286,0.051525,96995.0,96984.0,0.3608]
[1733806409489,0.051525,96995.0,96994.0,0.3608]
[1733806409680,0.051525,96995.0,96994.0,0.36084]
[1733806410884,0.051525,96995.0,96994.0,0.72594711]
[1733806411089,0.00011622,97038.0,97003.0,0.3608]
[1733806411396,0.00011622,97038.0,97037.0,4e-05]
[1733806411683,0.00011622,97038.0,97037.0,0.00017132]
[1733806412187,0.00011622,97038.0,97037.0,0.00010132]
[1733806412587,0.00011622,97038.0,97037.0,3.2e-07]
[1733806412588,0.37639622,97038.0,97037.0,3.2e-07]
[1733806412895,0.67639622,97038.0,97022.0,0.30360908]
[1733806413084,0.67639622,97038.0,97012.0,0.72504871]
[1733806413085,0.3608,97027.0,97020.0,0.08352708]
[1733806413276,0.3608,97027.0,97018.0,0.18222655]
[1733806413481,0.051513,97019.0,97017.0,0.18222655]
[1733806413882,0.051513,97019.0,97018.0,7.806e-05]
[1733806415191,0.051513,97019.0,97018.0,6e-08]
[1733806415192,0.712313,97019.0,97018.0,6e-08]
[1733806417593,0.71984623,97019.0,97018.0,6e-08]
[1733806421189,0.72800622,97019.0,97018.0,6e-08]
[1733806421994,0.72800622,97019.0,97018.0,8.6e-07]
[1733806422199,0.71984623,97019.0,97018.0,8.6e-07]
[1733806422493,0.051529,96989.0,96988.0,0.3608]
[1733806422791,0.051522,97002.0,96988.0,0.72178445]
[1733806422989,0.051529,96989.0,96988.0,0.32107722]
[1733806423590,0.051529,96989.0,96988.0,0.32119845]
[1733806424496,0.051529,96989.0,96988.0,2.3e-07]
[1733806424881,0.051539,96970.0,96968.0,0.36424871]
[1733806425088,0.3608,96977.0,96969.0,0.31962237]
[1733806425392,0.3608,96977.0,96968.0,0.04003163]
[1733806425393,8e-05,96969.0,96968.0,0.04003163]
[1733806425588,8e-05,96969.0,96968.0,0.31855016]
[1733806425903,0.36088,96969.0,96958.0,0.36424871]
[1733806426089,0.36088,96969.0,96946.0,0.3608]
[1733806426090,0.36088,96969.0,96959.0,0.31871545]
[1733806426394,0.36088,96969.0,96960.0,0.31860275]
[1733806426395,0.051543,96961.0,96960.0,0.31860275]
[1733806426695,0.3608,96969.0,96960.0,0.31860275]
[1733806426897,0.3608,96969.0,96962.0,0.36536858]
[1733806426898,0.051542,96963.0,96962.0,0.36536858]
[1733806427094,0.051542,96963.0,96962.0,0.31860275]
[1733806427394,0.051542,96963.0,96962.0,0.35863438]
[1733806427596,0.051542,96963.0,96962.0,0.06193875]
[1733806427794,0.051542,96963.0,96962.0,7.5e-07]
[1733806427992,0.3608,96969.0,96959.0,0.0001127]
[1733806428187,0.051544,96960.0,96959.0,0.0001127]
[1733806430089,0.051544,96960.0,96959.0,7e-07]
[1733806430488,0.067024,96960.0,96959.0,7e-07]
[1733806433091,0.051555,96939.0,96938.0,0.00515793]
[1733806433402,0.051635,96939.0,96938.0,0.04518956]
[1733806433601,0.051635,96939.0,96938.0,0.00515793]
[1733806433993,0.051635,96939.0,96938.0,8.3e-07]
[1733806434401,0.051571,96910.0,96909.0,0.3608]
[1733806434606,0.051571,96910.0,96909.0,0.40083163]
[1733806434904,0.051651,96910.0,96909.0,0.40083163]
[1733806435395,0.051651,96910.0,96909.0,0.40094122]
[1733806440098,8e-05,96910.0,96909.0,0.40094122]
[1733806440410,0.051564,96923.0,96912.0,0.051569]
[1733806440600,0.051564,96923.0,96922.0,0.3608]
[1733806440800,0.051564,96923.0,96922.0,0.36084]
[1733806442505,0.3608,96940.0,96922.0,0.66084]
[1733806442706,0.3608,96949.0,96937.0,0.3608]
[1733806442912,0.05155,96949.0,96947.0,0.3608]
[1733806443110,0.05155,96949.0,96948.0,4e-05]
[1733806444408,7.8e-05,96960.0,96948.0,4e-05]
[1733806444612,0.051622,96960.0,96959.0,0.3608]
[1733806444905,0.051622,96960.0,96959.0,0.36084]
[1733806445696,0.051622,96960.0,96959.0,4e-05]
[1733806450325,0.412422,96960.0,96959.0,4e-05]
[1733806452806,0.051622,96960.0,96959.0,4e-05]
[1733806454922,7.8e-05,96960.0,96959.0,4e-05]
[1733806455103,7.8e-05,96960.0,96959.0,0.40036192]
[1733806455310,7.8e-05,96960.0,96959.0,0.70732232]
[1733806455513,7.8e-05,96960.0,96959.0,0.40365319]
[1733806456111,0.051534,96980.0,96972.0,0.051538]
[1733806456317,0.051534,96979.0,96977.0,0.3608]
[1733806456613,0.051533,96980.0,96979.0,4e-05]
[1733806460018,0.051548,96952.0,96947.0,0.28787009]
[1733806460223,0.051555,96939.0,96937.0,0.3608]
[1733806460411,0.051555,96939.0,96921.0,0.413844]
[1733806460412,0.36084,96948.0,96929.0,0.36752495]
[1733806460718,0.051559,96933.0,96930.0,0.30399147]
[1733806460917,0.36084,96948.0,96947.0,4e-05]
[1733806460918,0.41235,96948.0,96947.0,4e-05]
[1733806461116,0.41235,96948.0,96947.0,0.00013271]
[1733806463020,0.41852131,96948.0,96947.0,0.00013271]
[1733806468621,0.41852131,96948.0,96929.0,0.00154718]
[1733806468622,0.05156,96930.0,96929.0,0.00154718]
[1733806469130,0.0516,96930.0,96929.0,0.00154718]
[1733806469322,0.0516,96930.0,96900.0,0.21140253]
[1733806469323,0.051569,96913.0,96907.0,0.36597777]
[1733806469530,0.051569,96913.0,96900.0,0.1]
[1733806469531,0.051575,96902.0,96900.0,0.1]
[1733806469718,0.051575,96902.0,96901.0,0.00011023]
[1733806470523,0.66295928,96908.0,96901.0,0.00011023]
[1733806470524,0.00596528,96907.0,96901.0,0.00011023]
[1733806470822,0.00076,96908.0,96906.0,8e-05]
[1733806470823,0.051572,96908.0,96906.0,8e-05]
[1733806471023,0.051568,96916.0,96906.0,8e-05]
[1733806471325,0.3608,96922.0,96915.0,8e-05]
[1733806471326,0.051565,96920.0,96915.0,8e-05]
[1733806471629,0.051565,96920.0,96919.0,4e-05]
[1733806471929,0.3608,96922.0,96919.0,4e-05]
[1733806472324,0.36156,96931.0,96921.0,4e-05]
[1733806472325,0.051561,96929.0,96921.0,4e-05]
[1733806472625,0.051561,96929.0,96927.0,4e-05]
[1733806473426,0.36156,96931.0,96927.0,4e-05]
[1733806473817,0.00076,96931.0,96927.0,0.30151883]
[1733806474331,0.3608,96943.0,96927.0,0.30151883]
[1733806474630,0.05168981,96928.0,96927.0,4e-05]
[1733806474823,0.05168981,96928.0,96927.0,0.30161752]
[1733806475025,0.00012881,96928.0,96927.0,0.30161752]
[1733806475930,0.00012881,96928.0,96927.0,0.30173863]
[1733806476132,0.05168981,96928.0,96927.0,0.30173863]
[1733806476431,0.05168981,96928.0,96927.0,0.24440966]
[1733806476619,0.05168981,96928.0,96927.0,0.00016111]
[1733806477823,0.05780457,96928.0,96927.0,0.00016111]
[1733806478633,0.05168981,96928.0,96927.0,0.00016111]
[1733806485928,0.05168981,96928.0,96914.0,0.24424855]
[1733806486230,0.051569,96914.0,96911.0,0.24424855]
[1733806486532,0.051569,96914.0,96905.0,0.051573]
[1733806486533,0.3608,96915.0,96905.0,0.051573]
[1733806486735,0.05157,96912.0,96905.0,0.051573]
[1733806486933,0.05157,96912.0,96906.0,7.38e-05]
[1733806487325,0.3608,96915.0,96906.0,7.38e-05]
[1733806487522,0.051572,96908.0,96906.0,7.38e-05]
[1733806488432,0.051572,96908.0,96907.0,0.30031085]
[1733806489641,0.051572,96908.0,96907.0,0.30052292]
[1733806493639,0.3608,96914.0,96907.0,0.30052292]
[1733806493839,0.3608,96914.0,96906.0,0.0516458]
[1733806493840,0.00613552,96917.0,96908.0,0.30052292]
[1733806494037,0.00613552,96917.0,96906.0,0.0516458]
[1733806494038,0.051567,96916.0,96914.0,0.30608572]
[1733806494425,0.051568,96915.0,96913.0,8e-05]
[1733806494639,0.051568,96915.0,96914.0,0.3008979]
[1733806495033,0.051568,96915.0,96914.0,0.3009811]
[1733806497630,0.3608,96926.0,96914.0,0.3009811]
[1733806497831,0.00012881,96928.0,96926.0,0.051562]
[1733806498034,0.00012881,96928.0,96927.0,0.3009811]
[1733806498233,0.051556,96938.0,96928.0,0.051561]
[1733806498436,0.051556,96938.0,96931.0,0.36722193]
[1733806498631,0.051556,96938.0,96937.0,4e-05]
[1733806498832,0.051556,96938.0,96937.0,0.3010211]
[1733806499835,0.412356,96938.0,96937.0,4e-05]
[1733806501135,0.051558,96934.0,96933.0,0.10984352]
[1733806501342,0.3608,96938.0,96927.0,4e-05]
[1733806501343,0.051557,96936.0,96927.0,4e-05]
[1733806501537,0.412361,96928.0,96927.0,4e-05]
[1733806503740,0.41841881,96928.0,96927.0,4e-05]
[1733806509433,0.41841881,96928.0,96927.0,0.60096812]
[1733806509642,0.41841881,96928.0,96927.0,4e-05]
[1733806509835,0.41841881,96928.0,96927.0,0.30610458]
[1733806510035,0.41841881,96928.0,96927.0,0.60119574]
[1733806510240,0.41841881,96928.0,96927.0,0.30610458]
[1733806510447,0.41841881,96928.0,96927.0,0.60119368]
[1733806510640,0.41841881,96928.0,96927.0,4e-05]
[1733806511639,0.41841881,96928.0,96927.0,0.30610458]
[1733806512034,0.41841881,96928.0,96927.0,4e-05]
[1733806513146,0.41841881,96928.0,96927.0,0.30610458]
[1733806513945,0.41841881,96928.0,96927.0,0.60140853]
[1733806514443,0.41841881,96928.0,96927.0,0.29534395]
[1733806514839,0.41841881,96928.0,96927.0,0.30609768]
[1733806515949,0.41841881,96928.0,96927.0,0.60136467]
[1733806516140,0.41841881,96928.0,96927.0,0.30609768]
[1733806516542,0.41841881,96928.0,96927.0,0.60131134]
[1733806517046,0.41841881,96928.0,96927.0,0.30609768]
[1733806517648,0.41841881,96928.0,96927.0,0.60133724]
[1733806518039,0.41841881,96928.0,96927.0,0.30609768]
[1733806518442,0.41841881,96928.0,96927.0,4e-05]
[1733806519740,0.51095612,96928.0,96927.0,4e-05]
[1733806520553,0.41841881,96928.0,96927.0,4e-05]
[1733806520947,0.5110378,96928.0,96927.0,4e-05]
[1733806521146,0.41841881,96928.0,96927.0,4e-05]
[1733806522750,0.51103621,96928.0,96927.0,4e-05]
[1733806522959,0.41841881,96928.0,96927.0,4e-05]
[1733806523347,0.41841881,96928.0,96927.0,0.29463553]
[1733806524850,0.41841881,96928.0,96927.0,4e-05]
[1733806525953,0.41841881,96928.0,96927.0,0.59933103]
[1733806526158,0.3608,96928.0,96927.0,0.29359934]
[1733806526854,0.00703547,96935.0,96927.0,0.29359934]
[1733806527155,0.00076,96938.0,96934.0,0.412358]
[1733806527465,0.05155,96949.0,96941.0,0.051554]
[1733806527758,0.05155,96949.0,96944.0,0.30537208]
[1733806527956,0.05155,96949.0,96941.0,0.051554]
[1733806527957,0.05155,96949.0,96947.0,0.30537208]
[1733806528166,0.0926174,96968.0,96945.0,0.28460887]
[1733806528167,0.051546,96956.0,96948.0,0.28460887]
[1733806528354,0.051548,96953.0,96951.0,0.30513006]
[1733806528652,0.051548,96953.0,96952.0,0.30513006]
[1733806528861,0.05846215,96961.0,96952.0,0.58944702]
[1733806529155,0.051545,96959.0,96953.0,0.30517462]
[1733806529457,0.051545,96959.0,96951.0,0.30517462]
[1733806529646,0.051545,96959.0,96953.0,0.3608]
[1733806529847,0.051545,96959.0,96953.0,0.66597462]
[1733806530047,0.36768065,96970.0,96953.0,0.66597462]
[1733806530254,7.289e-05,96970.0,96968.0,0.051539]
[1733806530953,7.289e-05,96970.0,96969.0,0.28377635]
[1733806531253,7.289e-05,96970.0,96969.0,0.58832702]
[1733806531458,7.289e-05,96970.0,96968.0,0.051539]
[1733806532660,7.289e-05,96970.0,96963.0,0.3608]
[1733806532661,0.051545,96965.0,96963.0,0.3608]
[1733806533156,0.00016,96964.0,96963.0,0.3608]
[1733806533950,0.00016,96964.0,96963.0,0.5432671]
[1733806534152,0.00016,96964.0,96963.0,0.3608]
[1733806534366,7.289e-05,96970.0,96963.0,0.3608]
[1733806534656,0.051534,96986.0,96969.0,4e-05]
[1733806534858,0.051534,96986.0,96978.0,0.18232167]
[1733806535164,0.051534,96986.0,96979.0,0.18232167]
[1733806535350,0.36775204,96992.0,96980.0,0.051537]
[1733806535552,0.36775204,96992.0,96985.0,4e-05]
[1733806536355,0.36775204,96992.0,96991.0,4e-05]
[1733806537447,0.00695204,96992.0,96991.0,4e-05]
[1733806537660,0.05153,96994.0,96991.0,4e-05]
[1733806537857,0.00678606,97001.0,96997.0,0.051525]
[1733806538057,0.051522,97005.0,96998.0,0.3608]
[1733806538357,0.051522,97005.0,97004.0,4e-05]
[1733806538864,0.051517,97014.0,97004.0,4e-05]
[1733806539162,0.051522,97010.0,97004.0,4e-05]
[1733806539364,0.051522,97010.0,97000.0,0.051526]
[1733806539552,0.051522,97009.0,97000.0,0.051526]
[1733806539757,0.36833149,97015.0,96992.0,0.00010332]
[1733806539758,8e-05,97001.0,96992.0,0.00010332]
[1733806539957,0.051606,97001.0,96992.0,0.00010332]
[1733806540263,0.05161,96993.0,96992.0,0.00010332]
[1733806541255,0.41241,96993.0,96992.0,0.00010332]
[1733806541460,0.051542,96973.0,96967.0,0.3608]
[1733806541661,0.3608,96970.0,96959.0,0.051549]
[1733806541861,0.3608,96980.0,96960.0,0.07431448]
[1733806542063,8e-05,96960.0,96959.0,0.36761589]
[1733806542362,8e-05,96960.0,96959.0,0.36773044]
[1733806542759,8e-05,96960.0,96959.0,0.55005211]
[1733806543153,8e-05,96960.0,96959.0,0.36773044]
[1733806544060,8e-05,96960.0,96959.0,0.00011455]
[1733806550363,0.3608,96971.0,96963.0,0.051546]
[1733806551369,0.3608,96997.0,96970.0,4e-05]
[1733806551573,0.3608,96997.0,96989.0,0.051533]
[1733806551776,0.3676227,96997.0,96989.0,4e-05]
[1733806552070,0.051535,96985.0,96983.0,0.3608]
[1733806552470,8e-05,96984.0,96983.0,0.3608]
[1733806553961,8e-05,96984.0,96978.0,0.18232167]
[1733806553962,0.051536,96983.0,96977.0,0.18232167]
[1733806554263,0.051545,96967.0,96965.0,0.3608]
[1733806554672,8e-05,96966.0,96965.0,0.3608]
[1733806554967,8e-05,96966.0,96961.0,0.18232167]
[1733806554968,0.051546,96965.0,96961.0,0.18232167]
[1733806555166,8e-05,96966.0,96959.0,0.00011455]
[1733806555466,0.051628,96960.0,96959.0,0.00011455]
[1733806558068,0.051628,96960.0,96959.0,0.18303679]